[Event "Titled Tuesday Blitz July 20 2021"]
[White "Arabidze, Meri"]
[Black "Filippova, Margarita"]
[WhiteFideId "13604040"]
[BlackFideId "34199680"]
[WhiteElo "2432"]
[BlackElo "1829"]
[Result "1-0"]
[Round "01"]
[TimeControl "180+1"]
[Date "2021.07.21"]
[WhiteClock "0:02:20"]
[BlackClock "0:01:41"]

1. Nf3 {[%clk 0:02:59]}  d5 {[%clk 0:02:59]} 2. g3 {[%clk 0:02:59]}  Nf6 {[%clk 0:03:00]} 3. Bg2 {[%clk 0:03:00]}  c5 {[%clk 0:02:59]} 4. O-O {[%clk 0:03:00]}  Nc6 {[%clk 0:03:00]} 5. d4 {[%clk 0:03:00]}  e6 {[%clk 0:02:57]} 6. c4 {[%clk 0:03:00]}  Be7 {[%clk 0:02:55]} 7. cxd5 {[%clk 0:02:58]}  exd5 {[%clk 0:02:55]} 8. dxc5 {[%clk 0:02:58]}  Bxc5 {[%clk 0:02:54]} 9. a3 {[%clk 0:02:58]}  O-O {[%clk 0:02:54]} 10. b4 {[%clk 0:02:58]}  Be7 {[%clk 0:02:54]} 11. Bb2 {[%clk 0:02:58]}  Ne4 {[%clk 0:02:53]} 12. Nbd2 {[%clk 0:02:58]}  Bf6 {[%clk 0:02:52]} 13. Bxf6 {[%clk 0:02:57]}  Qxf6 {[%clk 0:02:50]} 14. Nb3 {[%clk 0:02:56]}  Re8 {[%clk 0:02:46]} 15. e3 {[%clk 0:02:35]}  Bg4 {[%clk 0:02:42]} 16. h3 {[%clk 0:02:35]}  Bxf3 {[%clk 0:02:35]} 17. Qxf3 {[%clk 0:02:33]}  Rad8 {[%clk 0:02:32]} 18. Qxf6 {[%clk 0:02:33]}  Nxf6 {[%clk 0:02:29]} 19. Rac1 {[%clk 0:02:31]}  Ne4 {[%clk 0:02:23]} 20. Rfd1 {[%clk 0:02:29]}  h6 {[%clk 0:02:18]} 21. h4 {[%clk 0:02:28]}  a6 {[%clk 0:02:03]} 22. Nc5 {[%clk 0:02:26]}  Nxc5 {[%clk 0:01:54]} 23. Rxc5 {[%clk 0:02:26]}  d4 {[%clk 0:01:51]} 24. Bxc6 {[%clk 0:02:22]}  bxc6 {[%clk 0:01:46]} 25. Rxd4 {[%clk 0:02:19]}  Rxd4 {[%clk 0:01:44]} 26. exd4 {[%clk 0:02:20]}  Re1+ {[%clk 0:01:43]} 27. Kg2 {[%clk 0:02:19]}  Ra1 {[%clk 0:01:43]} 28. Ra5 {[%clk 0:02:19]}  Rd1 {[%clk 0:01:41]} 29. Rxa6 {[%clk 0:02:20]}  Rxd4 {[%clk 0:01:41]} 30. Rxc6 {[%clk 0:02:20]} 1-0


[Site "https://www.chess.com"]

[Event "Titled Tuesday Blitz July 20 2021"]
[White "Aradhya, Garg"]
[Black "Rama, Tejas"]
[WhiteFideId "25006746"]
[BlackFideId "30907381"]
[WhiteElo "2146"]
[BlackElo "1430"]
[Result "1-0"]
[Round "01"]
[TimeControl "180+1"]
[Date "2021.07.21"]
[WhiteClock "0:01:08"]
[BlackClock "0:00:19"]

1. d4 {[%clk 0:03:00]}  Nf6 {[%clk 0:02:56]} 2. c4 {[%clk 0:03:01]}  g6 {[%clk 0:02:56]} 3. g3 {[%clk 0:03:00]}  Bg7 {[%clk 0:02:46]} 4. Bg2 {[%clk 0:03:00]}  O-O {[%clk 0:02:44]} 5. Nc3 {[%clk 0:03:00]}  c6 {[%clk 0:02:35]} 6. e4 {[%clk 0:02:59]}  d5 {[%clk 0:02:35]} 7. e5 {[%clk 0:02:50]}  Ne4 {[%clk 0:02:13]} 8. Nxe4 {[%clk 0:02:50]}  dxe4 {[%clk 0:02:14]} 9. Bxe4 {[%clk 0:02:50]}  c5 {[%clk 0:02:11]} 10. Be3 {[%clk 0:02:48]}  Qa5+ {[%clk 0:02:07]} 11. Qd2 {[%clk 0:02:38]}  Qxd2+ {[%clk 0:02:06]} 12. Kxd2 {[%clk 0:02:38]}  cxd4 {[%clk 0:02:04]} 13. Bxd4 {[%clk 0:02:39]}  Rd8 {[%clk 0:02:02]} 14. Kc3 {[%clk 0:02:36]}  Nc6 {[%clk 0:01:31]} 15. Bxc6 {[%clk 0:02:26]}  bxc6 {[%clk 0:01:32]} 16. Ne2 {[%clk 0:02:27]}  Bg4 {[%clk 0:01:30]} 17. Rhe1 {[%clk 0:02:26]}  Rab8 {[%clk 0:01:08]} 18. f4 {[%clk 0:02:15]}  f6 {[%clk 0:01:07]} 19. Nc1 {[%clk 0:01:56]}  fxe5 {[%clk 0:00:49]} 20. Bxe5 {[%clk 0:01:53]}  Bxe5+ {[%clk 0:00:50]} 21. fxe5 {[%clk 0:01:52]}  Kf7 {[%clk 0:00:50]} 22. Nd3 {[%clk 0:01:46]}  Bf5 {[%clk 0:00:48]} 23. Nc5 {[%clk 0:01:43]}  a5 {[%clk 0:00:48]} 24. Rad1 {[%clk 0:01:41]}  Rdc8 {[%clk 0:00:45]} 25. e6+ {[%clk 0:01:35]}  Ke8 {[%clk 0:00:45]} 26. Rd7 {[%clk 0:01:35]}  Rb6 {[%clk 0:00:34]} 27. Red1 {[%clk 0:01:22]}  Rcb8 {[%clk 0:00:33]} 28. b3 {[%clk 0:01:22]}  a4 {[%clk 0:00:29]} 29. Ra7 {[%clk 0:01:16]}  axb3 {[%clk 0:00:28]} 30. axb3 {[%clk 0:01:15]}  Bxe6 {[%clk 0:00:24]} 31. Nxe6 {[%clk 0:01:13]}  Rxb3+ {[%clk 0:00:24]} 32. Kd4 {[%clk 0:01:13]}  Kf7 {[%clk 0:00:23]} 33. Ng5+ {[%clk 0:01:11]}  Kf6 {[%clk 0:00:22]} 34. Ne4+ {[%clk 0:01:10]}  Kf7 {[%clk 0:00:20]} 35. Rf1+ {[%clk 0:01:10]}  Kg8 {[%clk 0:00:19]} 36. Rxe7 {[%clk 0:01:09]}  Rd8+ {[%clk 0:00:19]} 37. Kc5 {[%clk 0:01:09]}  Re3 {[%clk 0:00:19]} 38. Nf6+ {[%clk 0:01:08]} 1-0


[Site "https://www.chess.com"]

[Event "Titled Tuesday Blitz July 20 2021"]
[White "Asadli, Vugar"]
[Black "Ouellet, Maili-Jade"]
[WhiteFideId "13405764"]
[BlackFideId "2620472"]
[WhiteElo "2770"]
[BlackElo "2416"]
[Result "1-0"]
[Round "01"]
[TimeControl "180+1"]
[Date "2021.07.21"]
[WhiteClock "0:00:39"]
[BlackClock "0:00:12"]

1. e4 {[%clk 0:02:58]}  c5 {[%clk 0:02:59]} 2. Nc3 {[%clk 0:02:57]}  d6 {[%clk 0:02:58]} 3. Bb5+ {[%clk 0:02:56]}  Nd7 {[%clk 0:02:57]} 4. f4 {[%clk 0:02:56]}  a6 {[%clk 0:02:54]} 5. Bxd7+ {[%clk 0:02:56]}  Bxd7 {[%clk 0:02:54]} 6. Nf3 {[%clk 0:02:56]}  Bc6 {[%clk 0:02:52]} 7. O-O {[%clk 0:02:54]}  g6 {[%clk 0:02:48]} 8. d3 {[%clk 0:02:49]}  Bg7 {[%clk 0:02:48]} 9. Qe1 {[%clk 0:02:49]}  e6 {[%clk 0:02:45]} 10. f5 {[%clk 0:02:45]}  Qd7 {[%clk 0:02:12]} 11. Bf4 {[%clk 0:02:33]}  Ne7 {[%clk 0:02:05]} 12. Qg3 {[%clk 0:02:30]}  e5 {[%clk 0:02:00]} 13. Bd2 {[%clk 0:02:11]}  f6 {[%clk 0:01:41]} 14. Nh4 {[%clk 0:01:56]}  g5 {[%clk 0:01:30]} 15. Bxg5 {[%clk 0:01:45]}  fxg5 {[%clk 0:01:28]} 16. Qxg5 {[%clk 0:01:44]}  Ng8 {[%clk 0:01:17]} 17. f6 {[%clk 0:01:38]}  Bxf6 {[%clk 0:01:13]} 18. Rxf6 {[%clk 0:01:27]}  Nxf6 {[%clk 0:01:14]} 19. Qxf6 {[%clk 0:01:28]}  Rf8 {[%clk 0:01:13]} 20. Qg5 {[%clk 0:01:26]}  Qe7 {[%clk 0:01:11]} 21. Qh5+ {[%clk 0:01:18]}  Qf7 {[%clk 0:01:10]} 22. Qxf7+ {[%clk 0:01:15]}  Rxf7 {[%clk 0:01:10]} 23. Nf5 {[%clk 0:01:16]}  Kd7 {[%clk 0:01:09]} 24. a3 {[%clk 0:01:09]}  b5 {[%clk 0:01:08]} 25. b4 {[%clk 0:01:09]}  Raf8 {[%clk 0:01:06]} 26. h3 {[%clk 0:01:00]}  Ke6 {[%clk 0:01:04]} 27. Re1 {[%clk 0:00:51]}  cxb4 {[%clk 0:01:01]} 28. axb4 {[%clk 0:00:52]}  d5 {[%clk 0:01:00]} 29. exd5+ {[%clk 0:00:49]}  Bxd5 {[%clk 0:01:00]} 30. Ne3 {[%clk 0:00:49]}  Bc6 {[%clk 0:00:56]} 31. Ng4 {[%clk 0:00:49]}  Rf5 {[%clk 0:00:51]} 32. d4 {[%clk 0:00:49]}  e4 {[%clk 0:00:49]} 33. Ne3 {[%clk 0:00:48]}  Rg5 {[%clk 0:00:30]} 34. h4 {[%clk 0:00:44]}  Rg3 {[%clk 0:00:27]} 35. d5+ {[%clk 0:00:43]}  Ke7 {[%clk 0:00:25]} 36. dxc6 {[%clk 0:00:42]}  Rg6 {[%clk 0:00:22]} 37. c7 {[%clk 0:00:41]}  Kd7 {[%clk 0:00:21]} 38. Ncd5 {[%clk 0:00:40]}  Rc6 {[%clk 0:00:18]} 39. c3 {[%clk 0:00:40]}  Rg8 {[%clk 0:00:15]} 40. Rf1 {[%clk 0:00:40]}  Kc8 {[%clk 0:00:12]} 41. Ne7+ {[%clk 0:00:39]} 1-0


[Site "https://www.chess.com"]

[Event "Titled Tuesday Blitz July 20 2021"]
[White "Boidiya, Sidi"]
[Black "Yuan, Qingyu"]
[WhiteFideId "19600100"]
[BlackFideId "8609772"]
[WhiteElo "2113"]
[BlackElo "2359"]
[Result "0-1"]
[Round "01"]
[TimeControl "180+1"]
[Date "2021.07.21"]
[WhiteClock "0:00:13"]
[BlackClock "0:00:39"]

1. e4 {[%clk 0:02:50]}  c5 {[%clk 0:02:57]} 2. Nc3 {[%clk 0:02:46]}  d6 {[%clk 0:02:57]} 3. g3 {[%clk 0:02:00]}  g6 {[%clk 0:02:52]} 4. Bg2 {[%clk 0:02:01]}  Bg7 {[%clk 0:02:52]} 5. d3 {[%clk 0:01:57]}  Nc6 {[%clk 0:02:51]} 6. Be3 {[%clk 0:01:29]}  Nd4 {[%clk 0:02:48]} 7. Qd2 {[%clk 0:01:29]}  Rb8 {[%clk 0:02:47]} 8. a4 {[%clk 0:01:27]}  a6 {[%clk 0:02:32]} 9. Nge2 {[%clk 0:01:24]}  b5 {[%clk 0:02:31]} 10. axb5 {[%clk 0:01:20]}  axb5 {[%clk 0:02:31]} 11. O-O {[%clk 0:01:20]}  b4 {[%clk 0:02:30]} 12. Nd1 {[%clk 0:01:18]}  Bg4 {[%clk 0:02:13]} 13. f3 {[%clk 0:01:10]}  Bd7 {[%clk 0:02:12]} 14. Nc1 {[%clk 0:01:07]}  h5 {[%clk 0:02:03]} 15. c3 {[%clk 0:01:05]}  Nc6 {[%clk 0:02:02]} 16. Ne2 {[%clk 0:01:04]}  Na5 {[%clk 0:01:51]} 17. Qc2 {[%clk 0:00:56]}  h4 {[%clk 0:01:39]} 18. Nf2 {[%clk 0:00:53]}  hxg3 {[%clk 0:01:38]} 19. hxg3 {[%clk 0:00:51]}  Nf6 {[%clk 0:01:38]} 20. g4 {[%clk 0:00:50]}  Bc6 {[%clk 0:01:20]} 21. d4 {[%clk 0:00:40]}  Nc4 {[%clk 0:01:12]} 22. Bg5 {[%clk 0:00:37]}  b3 {[%clk 0:01:07]} 23. Qc1 {[%clk 0:00:31]}  Bb5 {[%clk 0:00:59]} 24. Re1 {[%clk 0:00:28]}  Nd7 {[%clk 0:00:55]} 25. Ng3 {[%clk 0:00:22]}  cxd4 {[%clk 0:00:50]} 26. cxd4 {[%clk 0:00:19]}  Bxd4 {[%clk 0:00:51]} 27. Rd1 {[%clk 0:00:15]}  Bxb2 {[%clk 0:00:42]} 28. Qf4 {[%clk 0:00:13]}  Be5 {[%clk 0:00:39]} 0-1


[Site "https://www.chess.com"]

[Event "Titled Tuesday Blitz July 20 2021"]
[White "Borsuk, Konstantin"]
[Black "Bethke, Richard"]
[WhiteFideId "14113406"]
[BlackFideId "12959243"]
[WhiteElo "2363"]
[BlackElo "2371"]
[Result "0-1"]
[Round "01"]
[TimeControl "180+1"]
[Date "2021.07.21"]
[WhiteClock "0:00:02"]
[BlackClock "0:00:06"]

1. d4 {[%clk 0:03:00]}  Nf6 {[%clk 0:02:59]} 2. c4 {[%clk 0:03:00]}  e6 {[%clk 0:03:00]} 3. Nf3 {[%clk 0:03:00]}  d5 {[%clk 0:03:01]} 4. g4 {[%clk 0:03:00]}  Nxg4 {[%clk 0:02:59]} 5. Rg1 {[%clk 0:02:59]}  Nf6 {[%clk 0:02:59]} 6. Nc3 {[%clk 0:02:59]}  Nbd7 {[%clk 0:02:51]} 7. a3 {[%clk 0:02:55]}  b6 {[%clk 0:02:45]} 8. Bf4 {[%clk 0:02:50]}  a6 {[%clk 0:02:29]} 9. cxd5 {[%clk 0:02:40]}  exd5 {[%clk 0:02:25]} 10. Rc1 {[%clk 0:02:33]}  Bb7 {[%clk 0:02:25]} 11. Bh3 {[%clk 0:02:33]}  g6 {[%clk 0:02:18]} 12. Qd2 {[%clk 0:02:26]}  Bg7 {[%clk 0:02:07]} 13. Qe3+ {[%clk 0:02:02]}  Qe7 {[%clk 0:01:46]} 14. Qxe7+ {[%clk 0:01:34]}  Kxe7 {[%clk 0:01:47]} 15. Bxc7 {[%clk 0:01:34]}  Rac8 {[%clk 0:01:47]} 16. Bf4 {[%clk 0:01:24]}  Ne4 {[%clk 0:01:46]} 17. Ne5 {[%clk 0:01:14]}  Bxe5 {[%clk 0:01:16]} 18. Bxe5 {[%clk 0:01:10]}  Nxe5 {[%clk 0:01:16]} 19. Bxc8 {[%clk 0:01:09]}  Rxc8 {[%clk 0:01:16]} 20. dxe5 {[%clk 0:01:09]}  Ke6 {[%clk 0:01:11]} 21. f3 {[%clk 0:00:51]}  Nc5 {[%clk 0:01:10]} 22. f4 {[%clk 0:00:39]}  d4 {[%clk 0:00:23]} 23. Na2 {[%clk 0:00:34]}  Bd5 {[%clk 0:00:23]} 24. b4 {[%clk 0:00:34]}  Bxa2 {[%clk 0:00:20]} 25. bxc5 {[%clk 0:00:34]}  bxc5 {[%clk 0:00:20]} 26. e3 {[%clk 0:00:29]}  Kd5 {[%clk 0:00:14]} 27. exd4 {[%clk 0:00:24]}  Kxd4 {[%clk 0:00:14]} 28. Kf2 {[%clk 0:00:20]}  Bc4 {[%clk 0:00:14]} 29. Rgd1+ {[%clk 0:00:19]}  Bd3 {[%clk 0:00:15]} 30. Kg3 {[%clk 0:00:15]}  c4 {[%clk 0:00:15]} 31. Kg4 {[%clk 0:00:16]}  h6 {[%clk 0:00:14]} 32. f5 {[%clk 0:00:14]}  gxf5+ {[%clk 0:00:14]} 33. Kf4 {[%clk 0:00:14]}  c3 {[%clk 0:00:14]} 34. Rg1 {[%clk 0:00:10]}  c2 {[%clk 0:00:13]} 35. h3 {[%clk 0:00:09]}  Rc4 {[%clk 0:00:13]} 36. Rge1 {[%clk 0:00:07]}  Kc3+ {[%clk 0:00:13]} 37. Ke3 {[%clk 0:00:07]}  Re4+ {[%clk 0:00:13]} 38. Kf2 {[%clk 0:00:07]}  Kb2 {[%clk 0:00:07]} 39. Rg1 {[%clk 0:00:04]}  Re2+ {[%clk 0:00:07]} 40. Kf3 {[%clk 0:00:05]}  Rh2 {[%clk 0:00:07]} 41. Ke3 {[%clk 0:00:04]}  Be4 {[%clk 0:00:06]} 42. Kd4 {[%clk 0:00:05]}  Rxh3 {[%clk 0:00:07]} 43. Kc5 {[%clk 0:00:05]}  Rc3+ {[%clk 0:00:07]} 44. Kd6 {[%clk 0:00:05]}  Kxa3 {[%clk 0:00:06]} 45. Ke7 {[%clk 0:00:05]}  Rb3 {[%clk 0:00:07]} 46. Kxf7 {[%clk 0:00:05]}  Rb1 {[%clk 0:00:07]} 47. e6 {[%clk 0:00:04]}  Rxc1 {[%clk 0:00:05]} 48. Rxc1 {[%clk 0:00:04]}  Kb2 {[%clk 0:00:05]} 49. e7 {[%clk 0:00:03]}  Bc6 {[%clk 0:00:05]} 50. Re1 {[%clk 0:00:02]}  c1=Q {[%clk 0:00:05]} 51. Rxc1 {[%clk 0:00:02]}  Kxc1 {[%clk 0:00:06]} 0-1


[Site "https://www.chess.com"]

[Event "Titled Tuesday Blitz July 20 2021"]
[White "Bortnyk, Olexandr"]
[Black "ketster"]
[WhiteFideId "14120828"]
[WhiteElo "2723"]
[BlackElo "2447"]
[Result "1-0"]
[Round "01"]
[TimeControl "180+1"]
[Date "2021.07.20"]
[WhiteClock "0:00:48"]
[BlackClock "0:00:08"]

1. e4 {[%clk 0:02:58]}  e5 {[%clk 0:02:58]} 2. Bc4 {[%clk 0:02:57]}  Nf6 {[%clk 0:02:58]} 3. d3 {[%clk 0:02:56]}  Be7 {[%clk 0:02:55]} 4. Nc3 {[%clk 0:02:54]}  c6 {[%clk 0:02:49]} 5. Nf3 {[%clk 0:02:47]}  d6 {[%clk 0:02:47]} 6. h3 {[%clk 0:02:41]}  a5 {[%clk 0:02:44]} 7. a3 {[%clk 0:02:29]}  b5 {[%clk 0:02:41]} 8. Ba2 {[%clk 0:02:29]}  Nbd7 {[%clk 0:02:34]} 9. Be3 {[%clk 0:02:20]}  h6 {[%clk 0:02:27]} 10. Nh4 {[%clk 0:02:18]}  Nc5 {[%clk 0:02:19]} 11. Qf3 {[%clk 0:02:10]}  Be6 {[%clk 0:01:40]} 12. Bxc5 {[%clk 0:02:08]}  Bxa2 {[%clk 0:01:38]} 13. Bxd6 {[%clk 0:02:07]}  Bxd6 {[%clk 0:01:28]} 14. Rxa2 {[%clk 0:02:07]}  b4 {[%clk 0:01:28]} 15. Ne2 {[%clk 0:01:59]}  bxa3 {[%clk 0:01:22]} 16. bxa3 {[%clk 0:01:59]}  g6 {[%clk 0:01:19]} 17. O-O {[%clk 0:01:56]}  Rb8 {[%clk 0:01:15]} 18. g3 {[%clk 0:01:53]}  O-O {[%clk 0:01:12]} 19. Ng2 {[%clk 0:01:49]}  Kg7 {[%clk 0:01:09]} 20. Ne3 {[%clk 0:01:48]}  Qd7 {[%clk 0:01:09]} 21. Nc4 {[%clk 0:01:47]}  Bc7 {[%clk 0:01:01]} 22. Kg2 {[%clk 0:01:46]}  Rb5 {[%clk 0:00:57]} 23. Raa1 {[%clk 0:01:37]}  Rfb8 {[%clk 0:00:57]} 24. Nc3 {[%clk 0:01:33]}  R5b7 {[%clk 0:00:56]} 25. Qe3 {[%clk 0:01:31]}  Qe7 {[%clk 0:00:54]} 26. Rab1 {[%clk 0:01:29]}  Nd7 {[%clk 0:00:39]} 27. Rxb7 {[%clk 0:01:25]}  Rxb7 {[%clk 0:00:38]} 28. Rb1 {[%clk 0:01:26]}  Rxb1 {[%clk 0:00:32]} 29. Nxb1 {[%clk 0:01:27]}  Nc5 {[%clk 0:00:29]} 30. Nc3 {[%clk 0:01:23]}  a4 {[%clk 0:00:27]} 31. Qc1 {[%clk 0:01:18]}  Bd6 {[%clk 0:00:24]} 32. Qb2 {[%clk 0:01:15]}  f5 {[%clk 0:00:23]} 33. Qb6 {[%clk 0:01:11]}  fxe4 {[%clk 0:00:21]} 34. dxe4 {[%clk 0:01:12]}  Qc7 {[%clk 0:00:19]} 35. Qxc7+ {[%clk 0:01:00]}  Bxc7 {[%clk 0:00:20]} 36. Nb2 {[%clk 0:01:01]}  Ba5 {[%clk 0:00:19]} 37. Nbxa4 {[%clk 0:01:00]}  Ne6 {[%clk 0:00:18]} 38. Ne2 {[%clk 0:01:00]}  Kf6 {[%clk 0:00:16]} 39. Nb2 {[%clk 0:01:00]}  Nc5 {[%clk 0:00:13]} 40. Nc4 {[%clk 0:01:00]}  Bc7 {[%clk 0:00:13]} 41. Kf3 {[%clk 0:00:59]}  h5 {[%clk 0:00:13]} 42. h4 {[%clk 0:00:57]}  Bd8 {[%clk 0:00:14]} 43. Nc1 {[%clk 0:00:57]}  Be7 {[%clk 0:00:13]} 44. Nd3 {[%clk 0:00:57]}  Na4 {[%clk 0:00:12]} 45. Ndxe5 {[%clk 0:00:57]}  Bxa3 {[%clk 0:00:11]} 46. Nxg6 {[%clk 0:00:52]}  Bc5 {[%clk 0:00:09]} 47. Nf4 {[%clk 0:00:53]}  Nc3 {[%clk 0:00:08]} 48. Nxh5+ {[%clk 0:00:53]}  Kg6 {[%clk 0:00:09]} 49. Nf4+ {[%clk 0:00:53]}  Kf6 {[%clk 0:00:10]} 50. Nd3 {[%clk 0:00:52]}  Bd4 {[%clk 0:00:10]} 51. g4 {[%clk 0:00:52]}  Nd1 {[%clk 0:00:10]} 52. g5+ {[%clk 0:00:52]}  Kg6 {[%clk 0:00:10]} 53. Nce5+ {[%clk 0:00:50]}  Kg7 {[%clk 0:00:10]} 54. Nxc6 {[%clk 0:00:49]}  Bb6 {[%clk 0:00:11]} 55. Ne7 {[%clk 0:00:49]}  Nc3 {[%clk 0:00:12]} 56. Nd5 {[%clk 0:00:49]}  Nb5 {[%clk 0:00:11]} 57. Nxb6 {[%clk 0:00:49]}  Nd4+ {[%clk 0:00:11]} 58. Kg4 {[%clk 0:00:50]}  Nxc2 {[%clk 0:00:12]} 59. Nd5 {[%clk 0:00:50]}  Nd4 {[%clk 0:00:12]} 60. f4 {[%clk 0:00:50]}  Ne6 {[%clk 0:00:13]} 61. f5 {[%clk 0:00:51]}  Nd4 {[%clk 0:00:13]} 62. f6+ {[%clk 0:00:50]}  Kf7 {[%clk 0:00:13]} 63. N3f4 {[%clk 0:00:50]}  Nc6 {[%clk 0:00:12]} 64. g6+ {[%clk 0:00:50]}  Kf8 {[%clk 0:00:11]} 65. Kf5 {[%clk 0:00:49]}  Nd8 {[%clk 0:00:10]} 66. Ne7 {[%clk 0:00:48]}  Ke8 {[%clk 0:00:09]} 67. g7 {[%clk 0:00:47]}  Kf7 {[%clk 0:00:08]} 68. g8=Q# {[%clk 0:00:48]} 1-0


[Site "https://www.chess.com"]

[Event "Titled Tuesday Blitz July 20 2021"]
[White "Chen, Max"]
[Black "Gabrielian, Artur"]
[WhiteFideId "2622440"]
[BlackFideId "4131002"]
[WhiteElo "2420"]
[BlackElo "2523"]
[Result "0-1"]
[Round "01"]
[TimeControl "180+1"]
[Date "2021.07.20"]
[WhiteClock "0:00:04"]
[BlackClock "0:00:42"]

1. e4 {[%clk 0:02:48]}  c5 {[%clk 0:02:59]} 2. c3 {[%clk 0:02:48]}  d6 {[%clk 0:02:56]} 3. d4 {[%clk 0:02:47]}  Nf6 {[%clk 0:02:47]} 4. Bb5+ {[%clk 0:02:43]}  Bd7 {[%clk 0:02:47]} 5. Bxd7+ {[%clk 0:02:42]}  Nbxd7 {[%clk 0:02:47]} 6. Qe2 {[%clk 0:02:42]}  e6 {[%clk 0:02:46]} 7. Nf3 {[%clk 0:02:42]}  Be7 {[%clk 0:02:46]} 8. O-O {[%clk 0:02:42]}  O-O {[%clk 0:02:46]} 9. e5 {[%clk 0:02:33]}  Nd5 {[%clk 0:02:44]} 10. Nbd2 {[%clk 0:02:26]}  cxd4 {[%clk 0:02:43]} 11. cxd4 {[%clk 0:02:25]}  Qc7 {[%clk 0:02:38]} 12. b3 {[%clk 0:02:16]}  dxe5 {[%clk 0:02:29]} 13. dxe5 {[%clk 0:02:12]}  Rac8 {[%clk 0:02:16]} 14. Bb2 {[%clk 0:02:06]}  Qc2 {[%clk 0:02:16]} 15. Bd4 {[%clk 0:01:45]}  Bb4 {[%clk 0:02:08]} 16. Qb5 {[%clk 0:01:13]}  Bxd2 {[%clk 0:01:27]} 17. Qxd7 {[%clk 0:01:07]}  Rc7 {[%clk 0:01:27]} 18. Qb5 {[%clk 0:00:31]}  a6 {[%clk 0:01:24]} 19. Qe2 {[%clk 0:00:27]}  Nf4 {[%clk 0:01:24]} 20. Qxd2 {[%clk 0:00:24]}  Qxd2 {[%clk 0:01:21]} 21. Nxd2 {[%clk 0:00:24]}  Ne2+ {[%clk 0:01:22]} 22. Kh1 {[%clk 0:00:24]}  Nxd4 {[%clk 0:01:22]} 23. Rac1 {[%clk 0:00:24]}  Rfc8 {[%clk 0:01:21]} 24. Rxc7 {[%clk 0:00:20]}  Rxc7 {[%clk 0:01:22]} 25. Nc4 {[%clk 0:00:20]}  b5 {[%clk 0:01:21]} 26. Rd1 {[%clk 0:00:10]}  Nc6 {[%clk 0:01:20]} 27. Ne3 {[%clk 0:00:07]}  h5 {[%clk 0:01:15]} 28. f4 {[%clk 0:00:07]}  Nb4 {[%clk 0:01:13]} 29. a3 {[%clk 0:00:03]}  Nd5 {[%clk 0:01:09]} 30. Nxd5 {[%clk 0:00:03]}  exd5 {[%clk 0:01:10]} 31. Kg1 {[%clk 0:00:03]}  Rc3 {[%clk 0:01:04]} 32. Kf2 {[%clk 0:00:02]}  Rxb3 {[%clk 0:01:04]} 33. Rxd5 {[%clk 0:00:02]}  Rxa3 {[%clk 0:01:05]} 34. Rd8+ {[%clk 0:00:02]}  Kh7 {[%clk 0:01:05]} 35. f5 {[%clk 0:00:03]}  Rc3 {[%clk 0:01:00]} 36. Re8 {[%clk 0:00:01]}  b4 {[%clk 0:00:57]} 37. Rb8 {[%clk 0:00:01]}  Rc5 {[%clk 0:00:55]} 38. Rxb4 {[%clk 0:00:01]}  Rxe5 {[%clk 0:00:55]} 39. Rf4 {[%clk 0:00:01]}  a5 {[%clk 0:00:51]} 40. h3 {[%clk 0:00:02]}  Kh6 {[%clk 0:00:49]} 41. g4 {[%clk 0:00:02]}  Kg5 {[%clk 0:00:48]} 42. Kf3 {[%clk 0:00:02]}  Rb5 {[%clk 0:00:47]} 43. Ra4 {[%clk 0:00:02]}  Rb3+ {[%clk 0:00:46]} 44. Kg2 {[%clk 0:00:02]}  Rb2+ {[%clk 0:00:45]} 45. Kf3 {[%clk 0:00:02]}  Rb5 {[%clk 0:00:43]} 46. Kg3 {[%clk 0:00:02]}  h4+ {[%clk 0:00:43]} 47. Kg2 {[%clk 0:00:03]}  Rb2+ {[%clk 0:00:43]} 48. Kg1 {[%clk 0:00:03]}  Rb5 {[%clk 0:00:42]} 49. Kg2 {[%clk 0:00:03]}  Kf6 {[%clk 0:00:42]} 50. Kf3 {[%clk 0:00:04]}  Ke5 {[%clk 0:00:43]} 51. Kg2 {[%clk 0:00:04]}  Kd5 {[%clk 0:00:43]} 52. Kf3 {[%clk 0:00:04]}  f6 {[%clk 0:00:42]} 53. Kf4 {[%clk 0:00:04]}  Rb4+ {[%clk 0:00:42]} 0-1


[Site "https://www.chess.com"]